[Event "89_| Campeonato Brasileiro 2023"]
[Site "Recife"]
[Date "2023.12.14"]
[Round "2.4"]
[White "Diamant, Andre"]
[Black "Lira, Suan Bruno Fernande"]
[Result "1/2-1/2"]
[ECO "B22"]
[WhiteElo "2513"]
[BlackElo "2038"]
[PlyCount "97"]
[EventDate "2023.??.??"]
[EventCountry "BRA"]
[TimeControl "90+30"]
[WhiteClock "0:06:27"]
[BlackClock "0:01:07"]

{[%evp 19,97,27,29,21,61,57,87,81,88,90,120,112,112,125,194,202,180,197,192,
194,190,35,39,38,179,166,145,157,220,207,213,191,200,3,3,3,18,15,17,16,13,10,
11,0,0,0,0,-3,0,0,0,-8,-2,-7,0,0,0,0,0,0,0,0,0,0,0,0,0,0,0,0,0,-29940,-29937,
-29935,-20000,-29932,0,0,0,0]} 1. e4 {[%emt 0:00:00]} c6 {[%emt 0:00:00]} 2. c4
{[%emt 0:00:00]} d5 {[%emt 0:00:00]} 3. exd5 {[%emt 0:00:00]} cxd5 {[%emt 0:00:
00]} 4. cxd5 {[%emt 0:00:00]} Nf6 {[%emt 0:00:00]} 5. Nc3 {[%emt 0:00:00]} Nxd5
{[%emt 0:00:00]} 6. Nf3 {[%emt 0:00:00]} e6 {[%emt 0:00:00]} 7. Bc4 {[%emt 0:
00:00]} Nb6 {[%emt 0:00:00]} 8. Bb3 {[%emt 0:00:00]} Nc6 {[%emt 0:00:00]} 9. d4
{[%emt 0:00:00]} Be7 {[%emt 0:00:00]} 10. O-O {[%emt 0:00:00]} O-O {[%emt 0:00:
00]} 11. Bf4 {[%emt 0:00:00] B22: Sicilian: 2 c3.} a6 {[%emt 0:00:00]} 12. Re1
{[%emt 0:00:00]} Nb4 {[%emt 0:00:00]} 13. Rc1 {[%emt 0:00:00] White is better.
White is better.} N6d5 $146 {[%emt 0:00:00]} ({Predecessor:} 13... Nc6 14. d5 {
[%eval 45,31]} (14. h4 $16 {[%eval 119,26]}) 14... exd5 15. Nxd5 Nxd5 16. Qxd5
Be6 17. Qxd8 Nxd8 18. Nd4 Bxb3 19. Rxe7 Bd5 {1-0 (44) Lysenko,M-Jalabadze,N 
(2004) Herceg Novi 2005}) ({Predecessor:} 13... Nc6 14. d5 exd5 15. Nxd5 Nxd5
16. Qxd5 Be6 17. Qxd8 Nxd8 18. Nd4 Bxb3 19. Rxe7 Bd5 {1-0 (44) Lysenko,
M-Jalabadze,N (2004) Herceg Novi 2005}) 14. Bg3 {[%emt 0:00:00]} b6 {[%emt 0:
00:00]} 15. a3 {[%emt 0:00:00]} Nxc3 {[%emt 0:00:00]} 16. bxc3 {[%emt 0:00:00]}
({Reject} 16. Rxc3 $6 {[%eval 0,29] 16.bxc3 1.26} Nd5 $11) ({Much worse is} 16.
Rxc3 $6 Nd5 $11) 16... Nd5 {[%eval 194,24] [%emt 0:00:00][%cal Bb4d5,Bd5f6,
Bf6e4][%mdl 32]} (16... Nc6 $16 {[%eval 125,28] was worth a try.}) 17. c4 $18 {
[%emt 0:00:00]} Nf6 {[%emt 0:00:00]} 18. c5 {[%emt 0:00:00]} bxc5 {[%emt 0:00:
00]} 19. dxc5 {[%emt 0:00:00]} Qxd1 {[%emt 0:00:00]} 20. Rexd1 $2 {[%eval 35,
25] [%emt 0:00:00]} ({White should play} 20. Bxd1 $16 {[%eval 147,25]} a5 21.
Ne5) ({White has to play} 20. Bxd1 $18 {[%eval 190,32]} a5 21. Ne5) 20... Ne4
$14 {[%emt 0:00:00]} 21. Bd6 {[%emt 0:00:00]} Bxd6 {[%eval 179,30] [%emt 0:00:
00]} (21... Nxd6 $14 {[%eval 41,32]} 22. cxd6 Bf6) ({Black should play} 21...
Nxd6 $14 {[%eval 38,33]} 22. cxd6 Bf6) 22. cxd6 $18 {[%emt 0:00:00]} Rd8 {
[%emt 0:00:00]} 23. Rd4 {[%emt 0:00:00]} Bb7 {[%eval 220,26] [%emt 0:00:00]} (
23... Rb8 $16 {[%eval 157,28]}) 24. d7 {[%emt 0:00:00]} Nf6 {[%emt 0:00:00]}
25. Ne5 {[%emt 0:00:00]} Nd5 {[%emt 0:01:11]} 26. Bxd5 $2 {[%eval 3,35] [%emt
0:00:00]} (26. f4 $18 {[%eval 194,23]}) (26. f4 $18 {[%eval 200,28]}) 26...
Bxd5 $11 {[%emt 0:00:30]} 27. Rc7 {[%emt 0:00:00]} Kf8 {[%emt 0:03:19]} 28.
Rxd5 {[%emt 0:00:00]} exd5 {[%emt 0:00:08][%mdl 4096] Endgame KRR-KRN} 29. Nc6
{[%emt 0:00:00]} f5 $1 {[%emt 0:00:46]} 30. f4 {[%emt 0:00:00] With the idea
Kf2. Black should prevent Kf2.} Kf7 {[%emt 0:02:20]} 31. Kf2 {[%emt 0:00:00]}
Ke6 {[%emt 0:02:31] [#] ...Kd6 is the strong threat.} 32. Ne5 {[%emt 0:00:00]}
d4 {[%emt 0:01:17]} 33. a4 {[%emt 0:00:00]} Kd6 {[%emt 0:00:29]} 34. Rc6+ {
[%emt 0:03:41]} Kd5 {[%emt 0:00:06] [#] Hoping for ...Rxd7! White must now
prevent ...Rxd7!} 35. Rb6 {[%emt 0:00:49]} Ra7 {[%emt 0:01:51]} (35... g5 $5 {
[%cal Rg5f4]} 36. g3 gxf4 37. gxf4 Ra7 $17) 36. a5 {[%emt 0:04:16]} Rdxd7 {
[%emt 0:00:48]} 37. Nxd7 {[%emt 0:00:27]} Rxd7 {[%emt 0:00:02]} 38. Rxa6 {
[%emt 0:00:06] KR-KR} Ke4 {[%emt 0:00:37]} 39. g3 {[%emt 0:02:47]} Rc7 {
[%emt 0:00:11] And now ...Rc2+ would win.} 40. Re6+ {[%emt 0:01:29]} Kd3 {
[%emt 0:00:03]} 41. Re2 {[%emt 0:00:28]} Kc3 {[%emt 0:02:50] Strongly
threatening ...d3.} 42. Re1 {[%emt 0:00:30] aiming for Rc1+. And now Rc1+
would win.} Ra7 {[%emt 0:00:22]} (42... Kc2 $5 43. Re2+ $8 Kb3 $11) 43. Re5 {
[%emt 0:02:10]} g6 {[%emt 0:02:11]} 44. Ke2 {[%emt 0:01:23]} d3+ {[%emt 0:00:
40]} 45. Ke3 $2 {[%eval -32647,44] [%emt 0:00:23][%mdl 8192] [#]} (45. Kd1 $11
{[%eval 0,50]}) (45. Kd1 $11 {[%eval 0,41]}) 45... Rd7 $1 $19 {[%emt 0:00:54]}
46. Rc5+ {[%emt 0:00:09]} Kb4 {[%emt 0:00:08]} 47. Rc1 {[%emt 0:00:09]} Kxa5 $2
{[%eval 0,49] [%emt 0:00:18]} (47... d2 $19 {[%eval -742,28]} 48. Rd1 Kc3) (
47... d2 {[%eval -32631,41] mates} 48. Rd1 Kc3 49. Ke2 Kc2 50. Rh1 Re7+ 51. Kf2
d1=Q 52. Rxd1 Kxd1 53. g4 Kd2 54. Kg2 Ra7 55. Kf3 Rxa5 56. gxf5 gxf5 57. Kg3
Ke3 58. Kh4 Kxf4 59. Kh5 Ke3 60. Kh6 f4 61. h4 f3 62. Kg7 f2 63. Kf7 f1=Q+ 64.
Ke6 Qc4+ 65. Kd7 Ra7+ 66. Kd6 Ke4 67. h5 Qd5#) 48. Rd1 {[%emt 0:00:06]} Re7+ {
[%emt 0:00:51]} 49. Kf3 {[%emt 0:00:40] Accuracy: White = 89%, Black = 76%. .
Accuracy: White = 83%, Black = 77%.} 1/2-1/2

[Event "89_| Campeonato Brasileiro 2023"]
[Site "Recife"]
[Date "2023.12.14"]
[Round "2.5"]
[White "Ferreira Junior, Luiz Carlos A"]
[Black "Quintiliano Pinto, Renato Rodrigues"]
[Result "0-1"]
[ECO "D36"]
[WhiteElo "2037"]
[BlackElo "2489"]
[PlyCount "69"]
[EventDate "2023.??.??"]
[EventCountry "BRA"]
[TimeControl "90+30"]
[WhiteClock "0:29:00"]
[BlackClock "0:30:51"]

1. d4 {[%emt 0:00:00]} Nf6 {[%emt 0:00:00]} 2. Nf3 {[%emt 0:00:00]} d5 {
[%emt 0:00:00]} 3. c4 {[%emt 0:00:00]} e6 {[%emt 0:00:00]} 4. cxd5 {[%emt 0:00:
00]} exd5 {[%emt 0:00:00]} 5. Nc3 {[%emt 0:00:00]} c6 {[%emt 0:00:00]} 6. Bg5 {
[%emt 0:00:00]} Be7 {[%emt 0:00:00]} 7. Qc2 {[%emt 0:00:00]} g6 {[%emt 0:00:00]
} 8. e3 {[%emt 0:00:00]} Bf5 {[%emt 0:00:00]} 9. Bd3 {[%emt 0:00:00]} Bxd3 {
[%emt 0:00:00]} 10. Qxd3 {[%emt 0:00:00]} Nbd7 {[%emt 0:00:00]} 11. O-O {
[%emt 0:00:00]} O-O {[%emt 0:00:00]} 12. Rab1 {[%emt 0:00:00]} a5 {[%emt 0:00:
00]} 13. a3 {[%emt 0:00:00]} a4 {[%emt 0:00:00]} 14. Qc2 {[%emt 0:00:00]} Nb6 {
[%emt 0:00:00]} 15. Ne5 {[%emt 0:00:00]} Ra7 {[%emt 0:00:00]} 16. Rbc1 {
[%emt 0:00:00]} Re8 {[%emt 0:00:00]} 17. Nb1 {[%emt 0:00:00]} Ne4 {[%emt 0:00:
00]} 18. Bf4 {[%emt 0:00:00]} Bd6 {[%emt 0:00:00]} 19. Nd2 {[%emt 0:00:00]}
Bxe5 {[%emt 0:00:00]} 20. dxe5 {[%emt 0:00:00]} Nxd2 {[%emt 0:00:00]} 21. Qxd2
{[%emt 0:00:00]} Nc4 {[%emt 0:00:00]} 22. Qd4 {[%emt 0:00:00]} Ra6 {[%emt 0:00:
00]} 23. e4 {[%emt 0:00:00]} Qb6 {[%emt 0:00:00]} 24. Rfd1 {[%emt 0:00:00]}
Nxb2 {[%emt 0:00:00]} 25. Rb1 {[%emt 0:00:00]} Qxd4 {[%emt 0:00:00]} 26. Rxd4 {
[%emt 0:00:00]} Nc4 {[%emt 0:00:00]} 27. exd5 {[%emt 0:00:00]} Nxa3 {[%emt 0:
00:00]} 28. Rc1 {[%emt 0:00:00]} Nb5 {[%emt 0:00:00]} 29. Rb4 {[%emt 0:00:00]}
a3 {[%emt 0:00:00]} 30. d6 {[%emt 0:00:00]} Nc3 {[%emt 0:00:00]} 31. Kf1 {
[%emt 0:00:00]} Nd5 {[%emt 0:00:00]} 32. Rd4 {[%emt 0:00:00]} Nxf4 {[%emt 0:00:
00]} 33. Rxf4 {[%emt 0:00:00]} a2 {[%emt 0:00:00]} 34. Ra1 {[%emt 0:00:00]}
Rxe5 {[%emt 0:00:00]} 35. Rb4 {[%emt 0:00:00]} 0-1

[Event "89_| Campeonato Brasileiro 2023"]
[Site "Recife"]
[Date "2023.12.14"]
[Round "2.6"]
[White "Di Berardino, Diego Rafael"]
[Black "De Santana, Jose Ricardo Gonca"]
[Result "1-0"]
[ECO "D35"]
[WhiteElo "2477"]
[BlackElo "2036"]
[PlyCount "71"]
[EventDate "2023.??.??"]
[EventCountry "BRA"]
[TimeControl "90+30"]
[WhiteClock "0:40:11"]
[BlackClock "0:00:32"]

1. d4 {[%emt 0:00:00]} d5 {[%emt 0:00:00]} 2. c4 {[%emt 0:00:00]} c6 {[%emt 0:
00:00]} 3. Nf3 {[%emt 0:00:00]} Nf6 {[%emt 0:00:00]} 4. Nc3 {[%emt 0:00:00]} e6
{[%emt 0:00:00]} 5. cxd5 {[%emt 0:00:00]} exd5 {[%emt 0:00:00]} 6. Bg5 {
[%emt 0:00:00]} Be7 {[%emt 0:00:00]} 7. e3 {[%emt 0:00:00]} Bf5 {[%emt 0:00:00]
} 8. Nh4 {[%emt 0:00:00]} Be6 {[%emt 0:00:00]} 9. Bd3 {[%emt 0:00:00]} h6 {
[%emt 0:00:00]} 10. Bf4 {[%emt 0:00:00]} Qc8 {[%emt 0:00:00]} 11. Qc2 {[%emt 0:
00:00]} Nh5 {[%emt 0:00:00]} 12. Nf3 {[%emt 0:00:00]} Nd7 {[%emt 0:00:00]} 13.
Be5 {[%emt 0:00:00]} Nhf6 {[%emt 0:00:00]} 14. O-O-O {[%emt 0:00:00]} b5 {
[%emt 0:00:00]} 15. h3 {[%emt 0:00:00]} a5 {[%emt 0:00:00]} 16. g4 {[%emt 0:00:
00]} Nxe5 {[%emt 0:00:00]} 17. Nxe5 {[%emt 0:00:00]} Nd7 {[%emt 0:00:00]} 18.
f4 {[%emt 0:00:00]} Nxe5 {[%emt 0:00:00]} 19. dxe5 {[%emt 0:00:00]} Qb7 {
[%emt 0:00:00]} 20. Kb1 {[%emt 0:00:00]} a4 {[%emt 0:00:00]} 21. Rhf1 {[%emt 0:
00:00]} d4 {[%emt 0:00:00]} 22. exd4 {[%emt 0:00:00]} b4 {[%emt 0:00:00]} 23.
f5 {[%emt 0:00:00]} Bxa2+ {[%emt 0:00:00]} 24. Nxa2 {[%emt 0:00:00]} b3 {
[%emt 0:00:02]} 25. Qf2 {[%emt 0:00:00]} bxa2+ {[%emt 0:00:18]} 26. Ka1 {
[%emt 0:00:00]} Rb8 {[%emt 0:03:18]} 27. Bc4 {[%emt 0:00:00]} a3 {[%emt 0:04:
01]} 28. b3 {[%emt 0:00:00]} Qb4 {[%emt 0:00:38]} 29. Qc2 {[%emt 0:00:00]} Bg5
{[%emt 0:02:12]} 30. f6 {[%emt 0:00:00]} gxf6 {[%emt 0:00:45]} 31. exf6 {
[%emt 0:00:00]} Kf8 {[%emt 0:00:18]} 32. Kxa2 {[%emt 0:00:00]} Re8 {[%emt 0:00:
34]} 33. d5 {[%emt 0:00:00]} cxd5 {[%emt 0:05:09]} 34. Rxd5 {[%emt 0:00:00]}
Bxf6 {[%emt 0:00:43]} 35. Rxf6 {[%emt 0:00:00]} Qe1 {[%emt 0:00:30]} 36. Rxf7+
{[%emt 0:00:00]} 1-0

[Event "89_| Campeonato Brasileiro 2023"]
[Site "Recife"]
[Date "2023.12.14"]
[Round "2.7"]
[White "Urquiza, Marcello de Albuque"]
[Black "Santiago, Yago De Moura"]
[Result "0-1"]
[ECO "B19"]
[WhiteElo "2034"]
[BlackElo "2476"]
[PlyCount "54"]
[EventDate "2023.??.??"]
[EventCountry "BRA"]
[TimeControl "90+30"]
[WhiteClock "0:13:12"]
[BlackClock "1:06:43"]

1. e4 {[%emt 0:00:00]} c6 {[%emt 0:00:00]} 2. d4 {[%emt 0:00:00]} d5 {[%emt 0:
00:00]} 3. Nc3 {[%emt 0:00:00]} dxe4 {[%emt 0:00:00]} 4. Nxe4 {[%emt 0:00:00]}
Bf5 {[%emt 0:00:00]} 5. Ng3 {[%emt 0:00:00]} Bg6 {[%emt 0:00:00]} 6. h4 {
[%emt 0:00:00]} h6 {[%emt 0:00:00]} 7. h5 {[%emt 0:00:00]} Bh7 {[%emt 0:00:00]}
8. Bd3 {[%emt 0:00:00]} Bxd3 {[%emt 0:00:00]} 9. Qxd3 {[%emt 0:00:00]} Nf6 {
[%emt 0:00:00]} 10. Bd2 {[%emt 0:00:00]} e6 {[%emt 0:00:00]} 11. O-O-O {
[%emt 0:00:00]} Be7 {[%emt 0:00:00]} 12. Nf3 {[%emt 0:00:00]} Nbd7 {[%emt 0:00:
00]} 13. Ne4 {[%emt 0:00:00]} O-O {[%emt 0:00:00]} 14. Nxf6+ {[%emt 0:00:00]}
Nxf6 {[%emt 0:00:00]} 15. Qe2 {[%emt 0:00:00]} Qd5 {[%emt 0:00:00]} 16. c4 {
[%emt 0:00:00]} Qe4 {[%emt 0:00:00]} 17. Rde1 {[%emt 0:00:00]} Qxe2 {[%emt 0:
00:00]} 18. Rxe2 {[%emt 0:00:00]} Rfd8 {[%emt 0:00:00]} 19. g4 {[%emt 0:00:00]}
Nxg4 {[%emt 0:00:00]} 20. Rg1 {[%emt 0:00:00]} f5 {[%emt 0:00:00]} 21. Rxe6 {
[%emt 0:00:00]} Bf6 {[%emt 0:00:00]} 22. Bc3 {[%emt 0:00:00]} Re8 {[%emt 0:00:
00]} 23. Rxe8+ {[%emt 0:00:00]} Rxe8 {[%emt 0:00:00]} 24. d5 {[%emt 0:00:00]}
cxd5 {[%emt 0:00:00]} 25. cxd5 {[%emt 0:14:00]} Rc8 {[%emt 0:00:00]} 26. Kb1 {
[%emt 0:00:30]} Rc5 {[%emt 0:14:30]} 27. Bd4 {[%emt 0:00:00]} Rxd5 {[%emt 0:00:
00]} 0-1

[Event "89_| Campeonato Brasileiro 2023"]
[Site "Recife"]
[Date "2023.12.14"]
[Round "2.8"]
[White "Matsuura, Everaldo"]
[Black "Santiago, Vandeck Souza"]
[Result "1-0"]
[ECO "B36"]
[WhiteElo "2418"]
[BlackElo "2029"]
[PlyCount "87"]
[EventDate "2023.??.??"]
[EventCountry "BRA"]
[TimeControl "90+30"]
[WhiteClock "1:20:25"]
[BlackClock "1:30:11"]

1. e4 {[%emt 0:02:00]} c5 {[%emt 0:00:00]} 2. Nf3 {[%emt 0:00:00]} g6 {[%emt 0:
00:00]} 3. d4 {[%emt 0:00:00]} cxd4 {[%emt 0:00:00]} 4. Nxd4 {[%emt 0:00:00]}
Nc6 {[%emt 0:00:00]} 5. c4 {[%emt 0:00:00]} Nf6 {[%emt 0:00:00]} 6. Nc3 {
[%emt 0:00:00]} d6 {[%emt 0:00:00]} 7. Be2 {[%emt 0:00:00]} Nxd4 {[%emt 0:00:
00]} 8. Qxd4 {[%emt 0:00:00]} Bg7 {[%emt 0:00:00]} 9. Be3 {[%emt 0:00:00]} O-O
{[%emt 0:00:00]} 10. Qd2 {[%emt 0:00:00]} Qa5 {[%emt 0:00:00]} 11. O-O {
[%emt 0:00:00]} Be6 {[%emt 0:00:00]} 12. Rab1 {[%emt 0:00:00]} Rfc8 {[%emt 0:
00:00]} 13. b3 {[%emt 0:00:00]} Ng4 {[%emt 0:00:00]} 14. Nd5 {[%emt 0:00:00]}
Qxd2 {[%emt 0:00:00]} 15. Bxd2 {[%emt 0:00:00]} Kf8 {[%emt 0:00:00]} 16. Bg5 {
[%emt 0:00:00]} f6 {[%emt 0:00:00]} 17. Bd2 {[%emt 0:00:00]} Ne5 {[%emt 0:00:
00]} 18. f4 {[%emt 0:00:00]} Nc6 {[%emt 0:00:00]} 19. Bd3 {[%emt 0:00:00]} Bf7
{[%emt 0:00:00]} 20. g4 {[%emt 0:00:00]} e6 {[%emt 0:00:00]} 21. Ne3 {[%emt 0:
00:00]} a5 {[%emt 0:00:00]} 22. Rbc1 {[%emt 0:00:00]} Nb8 {[%emt 0:00:00]} 23.
Nd1 {[%emt 0:00:00]} Nd7 {[%emt 0:00:00]} 24. Nc3 {[%emt 0:00:00]} Nc5 {
[%emt 0:00:00]} 25. Bb1 {[%emt 0:00:00]} h5 {[%emt 0:00:00]} 26. gxh5 {[%emt 0:
00:00]} gxh5 {[%emt 0:00:00]} 27. Be3 {[%emt 0:00:00]} Bh6 {[%emt 0:00:00]} 28.
Rcd1 {[%emt 0:00:00]} Ke7 {[%emt 0:00:00]} 29. Nb5 {[%emt 0:00:00]} Ra6 {
[%emt 0:00:00]} 30. Kf2 {[%emt 0:00:00]} e5 {[%emt 0:00:00]} 31. Nxd6 {[%emt 0:
00:00]} Rxd6 {[%emt 0:00:00]} 32. Rxd6 {[%emt 0:00:00]} Kxd6 {[%emt 0:00:00]}
33. fxe5+ {[%emt 0:00:00]} fxe5 {[%emt 0:00:00]} 34. Rd1+ {[%emt 0:00:00]} Ke7
{[%emt 0:00:00]} 35. Bxh6 {[%emt 0:00:00]} Rg8 {[%emt 0:00:00]} 36. h4 {
[%emt 0:00:00]} Rg4 {[%emt 0:00:00]} 37. Bg5+ {[%emt 0:00:00]} Ke6 {[%emt 0:00:
00]} 38. Rd5 {[%emt 0:00:00]} Nxe4+ {[%emt 0:00:00]} 39. Bxe4 {[%emt 0:00:00]}
Rxe4 {[%emt 0:00:00]} 40. Rb5 {[%emt 0:00:00]} Be8 {[%emt 0:00:00]} 41. Rxb7 {
[%emt 0:00:00]} Bc6 {[%emt 0:00:00]} 42. Ra7 {[%emt 0:00:00]} Kf5 {[%emt 0:00:
00]} 43. Rh7 {[%emt 0:00:00]} Be8 {[%emt 0:00:00]} 44. Kf3 {[%emt 0:00:00]} 1-0

[Event "89_| Campeonato Brasileiro 2023"]
[Site "Recife"]
[Date "2023.12.14"]
[Round "3.2"]
[White "Marra, Eduardo da Costa"]
[Black "Mekhitarian, Krikor Sevag"]
[Result "1/2-1/2"]
[ECO "B81"]
[WhiteElo "2170"]
[BlackElo "2559"]
[PlyCount "73"]
[EventDate "2023.??.??"]
[EventCountry "BRA"]
[TimeControl "90+30"]
[WhiteClock "0:08:59"]
[BlackClock "0:02:33"]

{[%evp 12,73,30,34,51,50,43,2,7,6,9,-38,-28,-85,-54,-53,-62,-96,-100,-115,-75,
-110,-62,-91,-65,-64,22,29,30,28,36,38,74,56,81,81,183,10,10,7,9,9,10,10,17,0,
0,0,0,0,-2,0,0,0,0,0,0,0,0,0,0,0,0,0]} 1. e4 {[%emt 0:00:00]} c5 {[%emt 0:00:
00]} 2. Nf3 {[%emt 0:00:00]} d6 {[%emt 0:00:00]} 3. d4 {[%emt 0:00:00]} cxd4 {
[%emt 0:00:00]} 4. Nxd4 {[%emt 0:00:00]} Nf6 {[%emt 0:00:00]} 5. Nc3 {[%emt 0:
00:00]} a6 {[%emt 0:00:00]} 6. h3 {[%emt 0:00:00]} e6 {[%emt 0:00:00]} 7. g4 {
[%emt 0:00:00]} Nfd7 {[%emt 0:00:00] B81: Sicilian Scheveningen: Keres Attack.}
8. Bg2 {[%emt 0:00:00]} (8. Be3 {looks sharper.} b5 9. a3 Bb7 10. Qd2 Be7 11.
g5) 8... Nc6 {[%emt 0:00:00]} 9. Nxc6 {[%emt 0:00:00]} bxc6 {[%emt 0:00:00]}
10. b3 $146 {[%emt 0:00:00]} ({Predecessor:} 10. Be3 Be7 11. O-O O-O 12. f4 Rb8
13. Na4 c5 14. c4 Nb6 15. Nxb6 Qxb6 16. b3 {0-1 (30) Mompel Ferruz,X (2096)
-Janukshan,B (1605) Batumi 2022}) 10... Be7 {[%emt 0:00:00]} 11. Bb2 {[%emt 0:
00:00]} e5 {[%emt 0:00:00]} 12. g5 {[%eval -85,24] [%emt 0:00:00]} (12. Qd2 $11
{[%eval -28,24]}) 12... Nc5 {[%emt 0:00:00]} 13. h4 {[%emt 0:00:00]} h6 {
[%emt 0:00:00]} 14. gxh6 {[%emt 0:00:00]} Rxh6 {[%emt 0:00:00]} 15. h5 {
[%emt 0:00:00]} a5 {[%emt 0:00:00]} 16. a4 {[%emt 0:00:00]} Ne6 {[%emt 0:00:00]
} 17. Ne2 {[%emt 0:00:00]} Ba6 {[%emt 0:00:00]} 18. Ng3 {[%emt 0:00:00]} Nf4 {
[%eval 22,24] [%emt 0:00:00]} (18... d5 $15 {[%eval -64,29]}) 19. Bf1 $11 {
[%emt 0:00:00]} Bxf1 {[%emt 0:00:00]} 20. Kxf1 {[%emt 0:00:00]} g6 {[%emt 0:00:
00]} 21. Qf3 {[%emt 0:00:00]} Qd7 {[%emt 0:00:00]} 22. Rd1 {[%emt 0:00:00]
Threatens to win with Bxe5!} Qe6 {[%emt 0:00:00] [#]} 23. Bc1 $1 {[%emt 0:00:
00]} Bg5 {[%eval 183,27] [%emt 0:00:00]} (23... Qf6 $16 {[%eval 81,27]}) 24.
Ne2 $2 {[%eval 10,32] [%emt 0:00:00]} ({Better is} 24. hxg6 $18 {[%eval 183,27]
} fxg6 25. Bxf4 Bxf4 26. Rxh6 Bxh6 {[#]} 27. Nf5 $1 {[%mdl 512]} gxf5 28. exf5
{[%mdl 64] Discovered Attack}) 24... Rxh5 {[%emt 0:00:00] The position is
equal.} 25. Nxf4 {[%emt 0:00:00]} (25. Bxf4 {feels hotter.} Bxf4 26. Rxh5 gxh5
27. Rd3 O-O-O 28. Qxh5 Qg6 29. Rh3) 25... Bxf4 {[%emt 0:00:00]} 26. Rxh5 {
[%emt 0:00:00]} gxh5 {[%emt 0:00:00]} 27. Bxf4 {[%emt 0:00:00]} exf4 {[%emt 0:
00:00]} 28. Qxf4 {[%emt 0:00:00][%mdl 4096] Endgame KQR-KQR} O-O-O {[%emt 0:00:
00]} 29. Rd3 {[%emt 0:00:00]} d5 {[%emt 0:00:00]} 30. Rf3 {[%emt 0:02:04]} dxe4
{[%emt 0:00:00]} 31. Re3 {[%emt 0:02:54]} f5 {[%emt 0:00:00]} 32. Rg3 {[%emt 0:
00:02]} Rd5 {[%emt 0:01:58]} 33. Rg5 {[%emt 0:01:53]} Qe5 {[%emt 0:01:45]} 34.
Qxe5 {[%emt 0:02:33]} Rxe5 {[%emt 0:00:01]} 35. Rxh5 {[%emt 0:00:02]} Rc5 {
[%emt 0:10:50]} 36. Ke1 {[%emt 0:01:30]} Rxc2 {[%emt 0:02:23]} 37. Rxf5 {
[%emt 0:00:03] Accuracy: White = 72%, Black = 63%.} 1/2-1/2